[Event "15th Arad Open 2022"]
[Site "Arad"]
[Date "2022.08.14"]
[Round "9.11"]
[White "Ionescu, Irina"]
[Black "Anghel, Iulian-Mihai"]
[Result "1/2-1/2"]
[ECO "C54"]
[WhiteElo "2125"]
[BlackElo "2015"]
[Annotator "TA"]
[PlyCount "121"]
[EventDate "2022.08.08"]
[EventType "swiss"]
[EventCountry "ROU"]
[SourceTitle "playchess.com"]
[Source "ChessBase"]
[SourceQuality "1"]
[TimeControl "5400+30"]

{[%evp 22,121,14,18,16,0,0,-27,0,-33,-20,-21,0,0,0,-79,-76,-77,0,0,0,-53,-13,-67,-43,-50,-54,-76,-93,-114,-100,-93,-106,-109,-110,-100,-100,-178,-156,-207,-214,-179,-53,-125,-105,-186,-192,-233,-227,-244,-99,-91,-42,-46,-8,-13,-22,-16,0,-110,-99,-161,-168,-202,-183,-219,-214,-212,-144,-153,-152,-145,-123,-255,-254,-254,-234,-229,-146,-172,0,0,0,-327,-97,-97,-41,-34,-44,-214,0,0,0,0,0,0,0,0,0,0,0,0]} 1. e4 {[%emt 0:00:18]} e5 {[%emt 0:00:07]} 2. Nf3 {[%emt 0:00:18]} Nc6 {[%emt 0:00:08]} 3. Bc4 {[%emt 0:00:04]} Bc5 {[%emt 0:00:09]} 4. c3 {[%emt 0:00:13]} Nf6 {[%emt 0:00:06]} 5. d3 {[%emt 0:00:06]} a6 {[%emt 0:00:40]} 6. Nbd2 {[%emt 0:01:07]} Ba7 {[%emt 0:00:44]} 7. Bb3 {[%emt 0:01:20]} d6 {[%emt 0:00:35]} 8. O-O {[%emt 0:00:16]} O-O {[%emt 0:00:09]} 9. h3 {[%emt 0:00:07]} h6 {[%emt 0:00:29]} 10. Re1 {[%emt 0:00:14]} Be6 {[%emt 0:01:03] 10...Re8 is the modern continuation.} 11. Nf1 {[%emt 0:00:32]} Re8 {[%emt 0:02:39]} 12. Ng3 {[%emt 0:00:44]} d5 {[%emt 0:02:56] C54: Giuoco Piano: 4 c3 Nf6, main lines with 5 d4 and 5 d3.} 13. Qe2 {[%emt 0:00:33]} Qd7 {[%emt 0:07:24]} 14. Nh2 {[%emt 0:11:11]} Rad8 {[%emt 0:09:35] Black has an edge.} 15. Qf3 {[%emt 0:00:20][%cal Oc1h6]} dxe4 {[%emt 0:06:06]} 16. dxe4 {[%emt 0:01:06][%cal Oc1h6]} Bxb3 {[%emt 0:05:02]} 17. axb3 {[%emt 0:00:07][%cal Oc1h6]} Qd3 {[%emt 0:01:00] [#]} 18. Be3 $146 {[%emt 0:02:40]} (18. b4 $11) ({Predecessor:} 18. Qxd3 Rxd3 19. Nhf1 Red8 20. Be3 Bxe3 21. Nxe3 g6 22. b4 h5 23. f3 Kf8 24. Ngf1 {½-½ (31) Khatanbaatar,B (2375)-Batchuluun,T (2460) Ulaanbaatar 2016}) 18... Bxe3 $17 {[%emt 0:14:56]} 19. Rxe3 {[%emt 0:00:07]} Qd7 {[%emt 0:01:19]} (19... Qc2 $17) 20. Nf5 $11 {[%emt 0:05:57]} Kh7 {[%emt 0:01:52]} 21. g4 {[%emt 0:06:28]} (21. Qg3 $11 g6 22. Qh4 gxf5 23. Qxf6) 21... Ng8 {[%emt 0:06:49]} 22. Re2 {[%emt 0:18:16]} (22. g5 $11) 22... Qe6 {[%emt 0:05:45]} 23. b4 {[%emt 0:01:07]} Nce7 {[%emt 0:03:46][%cal Bc6e7,Be7g6,Bg6f4][%mdl 32]} 24. Ne3 {[%emt 0:07:58]} Rd3 {[%emt 0:02:07]} 25. Rd1 {[%emt 0:00:43]} Red8 {[%emt 0:01:03]} 26. Ree1 {[%emt 0:00:49]} Ng6 $1 {[%emt 0:02:16]} 27. Rxd3 {[%emt 0:03:56]} Rxd3 {[%emt 0:00:06]} 28. Rd1 {[%emt 0:00:05]} Rxd1+ {[%emt 0:01:21]} 29. Nxd1 {[%emt 0:01:47]} (29. Qxd1 $17 {was necessary.} Nf6 30. Qc2) 29... Nf4 {[%emt 0:00:57]} 30. Nf1 {[%emt 0:00:21] [#]} (30. h4 $17) 30... Ne7 $1 $19 {[%emt 0:03:23]} 31. Nfe3 {[%emt 0:01:17]} Qc6 {[%emt 0:04:50]} (31... Qd7 $19 32. Nd5 Nexd5 33. exd5 Qxd5 34. Qxd5 Nxd5) 32. Kh2 {[%emt 0:08:19]} (32. Ng2 $1 $15) 32... Qb5 {[%emt 0:02:03]} 33. h4 {[%emt 0:04:20]} (33. Nf5 $17 Nc8 34. Nd4) 33... Qd3 {[%emt 0:01:47]} 34. h5 {[%emt 0:06:15]} Ng8 {[%emt 0:04:12]} 35. Qh1 {[%emt 0:00:31]} Qe2 {[%emt 0:03:11]} (35... Nf6 $19 {[%cal Of6g4] and Black stays clearly on top.} 36. f3 Qd2+ 37. Kg3 Ne2+ 38. Kh2 Nxc3+ 39. Qg2 Ne2) 36. Kg3 $17 {[%emt 0:03:21]} Nf6 {[%emt 0:01:13]} (36... b5 $17) 37. f3 $15 {[%emt 0:01:41]} b5 {[%emt 0:02:19]} 38. Qf1 {[%emt 0:07:38]} Qd2 $36 {[%emt 0:00:20][%mdl 2048] Black fights for an advantage.} 39. Qf2 {[%emt 0:02:40]} Qd8 {[%emt 0:01:05]} 40. b3 {[%emt 0:00:00] [#]} (40. Qe1 $11 {remains equal.}) 40... Ne8 $1 $17 {[%emt 0:00:00]} 41. c4 {[%emt 0:00:00]} (41. Kh2 $17) 41... Qg5 $19 {[%emt 0:00:00]} 42. Kh2 {[%emt 0:00:00]} Nf6 {[%emt 0:00:00][%cal Of6h5]} 43. cxb5 {[%emt 0:00:00]} axb5 {[%emt 0:00:00][%cal Of6h5] White must now prevent ...N6xh5!} 44. Ng2 {[%emt 0:00:19] [#]} N6xh5 {[%emt 0:00:00][%mdl 512]} 45. gxh5 {[%emt 0:01:12]} Qxh5+ {[%emt 0:00:02]} 46. Qh4 {[%emt 0:01:23]} ({But not} 46. Nh4 $2 Ng6 47. Ne3 Nxh4 $19) 46... Qxf3 {[%emt 0:00:03][%csl Gf4][%cal Rf3g2]} 47. Nxf4 {[%emt 0:02:53]} (47. Nde3 $17 {only move.}) 47... exf4 {[%emt 0:00:31]} ({Stronger than} 47... Qxf4+ 48. Qxf4 exf4 49. Nc3 $14) ({Worse is} 47... Qxd1 48. Qh3 $15) 48. Qe1 {[%emt 0:00:04]} Qxb3 {[%emt 0:00:54]} 49. e5 {[%emt 0:00:21]} Qc2+ {[%emt 0:00:28]} 50. Nf2 {[%emt 0:00:09]} Kg6 $2 {[%emt 0:02:06]} (50... g5 $19 {...g4 is the strong threat.} 51. Kg2 Kg6) 51. Qg1+ $11 {[%emt 0:00:44]} Kh7 {[%emt 0:00:45]} 52. Qg2 $2 {[%emt 0:00:51][%mdl 8192]} (52. Qe1 $1 $11 {and White is okay.}) 52... g6 $2 {[%emt 0:00:59]} (52... Qe2 $19 {has better winning chances. Strongly threatening ...g5.} 53. Qe4+ Qxe4 54. Nxe4 Kg6) 53. Ne4 $17 {[%emt 0:00:21]} Qc4 {[%emt 0:01:07]} (53... Qd1 $17 {And now ...Qh5+ would win.} 54. Nf6+ Kg7 55. Ne8+ Kf8) 54. Nf6+ $15 {[%emt 0:00:27]} Kg7 {[%emt 0:00:15]} 55. Qe4 $2 {[%emt 0:01:35]} (55. Ne8+ $15 Kf8 56. Nf6) 55... Qf1 $2 {[%emt 0:01:35]} ({Better is} 55... c6 $19 {Threatens to win with ...Qxe4.} 56. Kg1 h5) 56. Ne8+ $1 $11 {[%emt 0:00:39] The position is equal.} Kh7 {[%emt 0:01:17]} 57. Nf6+ {[%emt 0:00:16]} Kg7 {[%emt 0:00:08]} 58. Ne8+ $1 {[%emt 0:00:19]} Kh7 {[%emt 0:01:11] Hoping for ...f3.} 59. Nf6+ {[%emt 0:00:11]} Kg7 {[%emt 0:03:07]} 60. Ne8+ $1 {[%emt 0:03:54]} Kf8 61. Nxc7 {Weighted Error Value: White=0.36/Black=0.35} 1/2-1/2

[Event "15th Arad Open 2022"]
[Site "Arad"]
[Date "2022.08.14"]
[Round "9.12"]
[White "Chima, Radu-Niculin"]
[Black "Sida, Flavia-Maria"]
[Result "1-0"]
[ECO "B75"]
[WhiteElo "2005"]
[BlackElo "1392"]
[Annotator "TA"]
[PlyCount "57"]
[EventDate "2022.08.08"]
[EventType "swiss"]
[EventCountry "ROU"]
[SourceTitle "playchess.com"]
[Source "ChessBase"]
[SourceQuality "1"]
[TimeControl "5400+30"]

{[%evp 14,57,59,64,38,37,22,0,0,0,22,-63,-68,-62,-47,-63,-60,-95,-75,-79,-70,-63,-72,-68,-63,-153,-69,-218,-81,-190,-152,-123,-122,-133,-124,-123,-117,-126,-96,-94,0,0,158,178,752,718]} 1. e4 {[%emt 0:00:03]} c5 {[%emt 0:00:11]} 2. Nf3 {[%emt 0:00:08]} d6 {[%emt 0:00:17]} 3. d4 {[%emt 0:00:09]} cxd4 {[%emt 0:00:09]} 4. Nxd4 {[%emt 0:00:07]} g6 {[%emt 0:00:12]} 5. Nc3 {[%emt 0:00:12]} Bg7 {[%emt 0:00:24]} 6. Be3 {[%emt 0:00:12]} Nf6 {[%emt 0:00:29]} 7. f3 {[%emt 0:02:20]} a6 {[%emt 0:02:46]} 8. Qd2 {[%emt 0:00:57]} h5 {[%emt 0:01:02] 8...b5 is the modern continuation. B75: Sicilian Dragon: Yugoslav Attack, Miscellaneous.} 9. O-O-O {[%emt 0:00:29]} b5 {[%emt 0:01:56]} 10. Nb3 {[%emt 0:03:54][%cal Oe4e5] [#] Hoping for e5!} Nbd7 {[%emt 0:01:50] The position is equal.} 11. Kb1 {[%emt 0:03:36]} Bb7 {[%emt 0:01:26]} 12. a4 {[%emt 0:11:14] [#]} ({White has to play} 12. a3 $1 $11) 12... bxa4 $146 {[%emt 0:06:58]} ({Predecessor:} 12... O-O 13. axb5 axb5 14. Bxb5 Qc7 15. Rhe1 Rfb8 16. Bd4 Bc6 17. Bxc6 Qxc6 18. Qd3 Rb4 19. Na2 {1-0 (19) Daanen,A (2136)-Martyshin,S (1683) LSS email 2014}) 13. Nxa4 {[%emt 0:00:11]} Bc6 $1 {[%emt 0:00:17]} 14. Qb4 {[%emt 0:04:57]} O-O {[%emt 0:08:54]} 15. Nd4 {[%emt 0:05:54]} Bxa4 {[%emt 0:05:06]} 16. Qxa4 {[%emt 0:00:12]} Nc5 {[%emt 0:00:22]} 17. Qa3 {[%emt 0:03:00]} Qc7 {[%emt 0:02:51]} 18. Nb3 {[%emt 0:12:06]} Nfd7 {[%emt 0:00:53] ...Rfb8 is the strong threat.} 19. Be2 {[%emt 0:05:45]} ({White should try} 19. Nxc5 $15 Nxc5 20. Bxc5) 19... Rfc8 {[%emt 0:03:02]} (19... Rab8 $17 20. Bd4 Nxb3 21. cxb3 Bxd4 22. Rxd4 Qc5 23. Qxc5 Nxc5) 20. Rc1 {[%emt 0:06:24]} (20. Nxc5 $15 Nxc5 21. Bxc5) 20... a5 {[%emt 0:02:01]} (20... Rcb8 $19 {and Black stays clearly on top. White must now prevent ...a5.} 21. Rcd1 a5) 21. Nd4 {[%emt 0:01:07]} (21. Nxc5 $17 {was necessary.} Nxc5 22. Bxc5 Qxc5 23. Qxc5 Rxc5 24. c3) 21... a4 {[%emt 0:05:31]} 22. Rhd1 {[%emt 0:02:04][%cal Bh1d1,Bd1d5,Bd5h5][%mdl 32]} Rcb8 {[%emt 0:07:06]} 23. Nb5 {[%emt 0:01:46]} Qc6 {[%emt 0:04:39]} 24. c4 {[%emt 0:03:52]} Nb3 {[%emt 0:03:14]} 25. Rc2 {[%emt 0:02:54]} Ndc5 {[%emt 0:00:45] Pair of Knights!} 26. Rd5 {[%emt 0:04:43]} f5 {[%emt 0:05:39]} ({Better is} 26... Kh7 $17) 27. exf5 $11 {[%emt 0:01:57]} (27. Bxc5 $2 dxc5 28. Ka2 fxe4 29. fxe4 e6 $19) 27... Kh8 $2 {[%emt 0:02:55]} (27... Rxb5 $2 28. cxb5 Qe8 29. Bc4 $18) ({Black should play} 27... gxf5 $11 28. f4 (28. Rxf5 Qd7 $11) 28... Ne4) 28. fxg6 $16 {[%emt 0:01:27] [#] Threatens to win with f4. Dancing on a razor blade.} Rxb5 $2 {[%emt 0:03:18]} (28... Qc8 29. Bg1 (29. Rxh5+ Kg8 $16) 29... Kg8) 29. Rxh5+ {[%emt 0:00:20] Weighted Error Value: White=0.25 (precise) /Black=0.29 (precise)} 1-0

[Event "15th Arad Open 2022"]
[Site "Arad"]
[Date "2022.08.14"]
[Round "9.13"]
[White "Tablan, Matei-Christian"]
[Black "Ghita, Vlad-Bogdan"]
[Result "1-0"]
[ECO "A43"]
[WhiteElo "1928"]
[BlackElo "1944"]
[Annotator "TA"]
[PlyCount "55"]
[EventDate "2022.08.08"]
[EventType "swiss"]
[EventCountry "ROU"]
[SourceTitle "playchess.com"]
[Source "ChessBase"]
[SourceQuality "1"]
[TimeControl "5400+30"]

{[%evp 10,55,79,63,102,102,99,102,107,102,161,158,216,220,245,208,217,220,367,360,443,415,439,452,501,493,493,408,394,412,358,337,572,560,794,791,716,707,680,685,658,618,741,552,5593,1693,1393,1340]} 1. e4 {[%emt 0:00:04]} g6 {[%emt 0:00:07]} 2. d4 {[%emt 0:00:06]} Bg7 {[%emt 0:00:03]} 3. c4 {[%emt 0:00:09]} c5 {[%emt 0:00:04]} 4. d5 {[%emt 0:01:03]} d6 {[%emt 0:00:05]} 5. Nc3 {[%emt 0:01:34]} Bxc3+ {[%emt 0:00:04]} 6. bxc3 {[%emt 0:00:08]} e5 {[%emt 0:00:01] is recently more successful than 6...Qa5. A43: Schmid Benoni.} 7. Bd3 {[%emt 0:04:13]} Nd7 {[%emt 0:00:44]} 8. Ne2 {[%emt 0:05:28] [#] White is more active.} Qa5 $146 {[%emt 0:00:20] White is better.} ({Predecessor:} 8... Qe7 9. a4 a5 10. h4 h6 11. f3 Kd8 12. Be3 Nb6 13. Qb3 Ra6 14. g4 Bd7 {0-1 (65) Muradli,M (2523)-Ilyasli,U (2310) Nakhchivan 2022}) 9. O-O {[%emt 0:01:51]} Ne7 {[%emt 0:00:37]} (9... h5 $16) 10. Bh6 $18 {[%emt 0:07:37]} Qa6 {[%emt 0:00:30]} (10... f6 $16 11. f4 Kf7) 11. a4 {[%emt 0:04:58]} Qa5 {[%emt 0:01:19]} 12. h3 {[%emt 0:09:40]} Rg8 {[%emt 0:00:05]} 13. f4 {[%emt 0:08:39]} f5 {[%emt 0:01:19]} (13... exf4 $142 14. Bxf4 Qc7) 14. Qc2 {[%emt 0:06:20]} fxe4 {[%emt 0:02:00]} 15. Bxe4 {[%emt 0:00:07]} Qa6 {[%emt 0:01:54]} 16. f5 {[%emt 0:08:34]} gxf5 {[%emt 0:01:08]} 17. Bxf5 {[%emt 0:00:06]} Qxc4 {[%emt 0:00:57]} 18. Bxh7 {[%emt 0:05:44] This bishop pair is nice.} Qxd5 {[%emt 0:00:52][%csl Gg8][%cal Rd5g2] [#]} 19. Bxg8 {[%emt 0:00:15]} Qxg8 {[%emt 0:00:21]} 20. Rf2 {[%emt 0:04:31]} Qh8 $2 {[%emt 0:12:01]} (20... d5 21. a5 Qg6 22. Qxg6+ Nxg6) 21. Bg5 {[%emt 0:00:36] Hoping for Bxe7. White is clearly winning.} Nb6 {[%emt 0:03:36]} 22. Raf1 {[%emt 0:18:46] [#] Black must now prevent Bxe7.} Be6 {[%emt 0:00:33]} 23. Rf8+ Qxf8 {[%emt 0:00:01]} 24. Rxf8+ Kxf8 {[%emt 0:00:04]} 25. Qh7 {[%emt 0:01:26]} Bf7 {[%emt 0:00:39]} 26. Ng3 {[%emt 0:03:03] And now Ne4 would win.} Nxa4 {[%emt 0:03:03]} 27. Qh8+ {[%emt 0:03:42]} (27. Ne4 $142 Ke8 28. Nxd6+ Kd7 29. Nxf7) 27... Ng8 {[%emt 0:00:55]} 28. Nf5 {[%emt 0:00:05] Black got outplayed after the opening.  Weighted Error Value: White=0.24 (precise) /Black=0.54} 1-0

[Event "15th Arad Open 2022"]
[Site "Arad"]
[Date "2022.08.14"]
[Round "9.14"]
[White "Tamas, Christian-Arrydan"]
[Black "Donici-Maier, David"]
[Result "1-0"]
[ECO "E92"]
[WhiteElo "1913"]
[BlackElo "1786"]
[Annotator "TA"]
[PlyCount "113"]
[EventDate "2022.08.08"]
[EventType "swiss"]
[EventCountry "ROU"]
[SourceTitle "playchess.com"]
[Source "ChessBase"]
[SourceQuality "1"]
[TimeControl "5400+30"]

{[%evp 15,113,44,76,70,106,112,123,123,160,162,240,208,214,210,231,218,224,212,219,216,222,221,234,234,238,238,250,247,243,239,243,196,273,269,270,276,258,242,276,276,276,276,291,283,283,283,276,242,242,242,242,242,242,242,242,215,216,199,444,412,564,564,559,517,549,550,612,591,757,750,750,749,735,701,736,574,872,843,859,821,771,513,468,512,505,478,446,364,693,693,842,842,673,701,843,833,29965,29966,5402,1643]} 1. d4 {[%emt 0:00:19]} Nf6 {[%emt 0:00:18]} 2. c4 {[%emt 0:00:29]} g6 {[%emt 0:00:25]} 3. Nc3 {[%emt 0:00:23]} Bg7 {[%emt 0:00:10]} 4. e4 {[%emt 0:00:19]} d6 {[%emt 0:00:07]} 5. Nf3 {[%emt 0:00:21]} O-O {[%emt 0:00:29]} 6. Be2 {[%emt 0:00:42]} e5 {[%emt 0:00:57]} 7. d5 {[%emt 0:00:09]} Na6 {[%emt 0:00:34]} 8. Nd2 {[%emt 0:00:32]} c5 {[%emt 0:04:14]} 9. g4 {[%emt 0:07:57] [#] E92: King's Indian: Classical: 6 Be2 e5: 7 dxe5, 7 Be3 and Petrosian System without 7...Nbd7.} h6 $146 {[%emt 0:07:29]} ({Predecessor:} 9... Nc7 10. h4 h6 11. g5 Nh7 12. gxh6 Bxh6 13. h5 Bf4 14. Nf1 a6 15. a4 Bd7 16. Rg1 g5 {½-½ (27) Bjelobrk,I (2401)-Rujevic,M (2092) Melbourne 2018}) 10. h4 {[%emt 0:02:51][%cal Bh2h4,Bh4h5][%mdl 32]} Nh7 {[%emt 0:02:52]} 11. Nf1 {[%emt 0:09:57] White is better.} Rb8 {[%emt 0:10:34]} 12. Be3 {[%emt 0:04:44]} f6 {[%emt 0:04:02]} (12... Nc7 $142 13. Ng3 a6) 13. Qc1 {[%emt 0:13:44]} g5 {[%emt 0:02:06]} 14. a3 {[%emt 0:01:16]} Bd7 {[%emt 0:01:21]} 15. h5 {[%emt 0:02:49]} Rf7 {[%emt 0:03:22]} 16. Rb1 {[%emt 0:04:34]} b6 {[%emt 0:02:19]} 17. b4 {[%emt 0:04:20]} Be8 {[%emt 0:00:53]} 18. Ng3 {[%emt 0:05:15]} Bf8 {[%emt 0:01:23]} 19. f3 {[%emt 0:01:15]} Rfb7 {[%emt 0:00:26]} 20. Kf2 {[%emt 0:00:49]} Kh8 {[%emt 0:07:41]} 21. Qd2 {[%emt 0:09:36]} Nc7 {[%emt 0:06:57]} 22. Rb2 {[%emt 0:04:02]} a6 {[%emt 0:02:37]} 23. a4 {[%emt 0:01:55]} Na8 {[%emt 0:02:13]} (23... cxb4 $142 24. Rxb4 a5) 24. Rhb1 $18 {[%emt 0:01:15]} Qc7 {[%emt 0:02:15]} 25. Rb3 {[%emt 0:13:30]} Bd7 {[%emt 0:02:24]} 26. Qa2 {[%emt 0:00:45]} Kg8 {[%emt 0:09:14]} 27. Kg2 {[%emt 0:05:25]} Kh8 {[%emt 0:02:46]} 28. R1b2 {[%emt 0:00:08]} Kg8 {[%emt 0:01:45]} 29. Qb1 {[%emt 0:00:20]} Bc8 {[%emt 0:00:17]} 30. Bf2 {[%emt 0:02:25]} Kh8 {[%emt 0:03:06]} 31. bxc5 {[%emt 0:01:40]} bxc5 {[%emt 0:00:42]} 32. Be1 {[%emt 0:00:20]} Rxb3 {[%emt 0:02:46]} 33. Rxb3 {[%emt 0:00:06]} Rxb3 {[%emt 0:00:18]} 34. Qxb3 {[%emt 0:00:10]} Be7 {[%emt 0:04:04]} 35. Nd1 {[%emt 0:01:15]} Nf8 {[%emt 0:01:27]} 36. a5 {[%emt 0:00:18]} Bd8 $2 {[%emt 0:01:11] [#]} (36... Nd7 37. Nf5 Bf8) 37. Ne3 {[%emt 0:00:48]} Kh7 {[%emt 0:00:34]} 38. Ngf5 {[%emt 0:00:07]} Bd7 {[%emt 0:02:27]} 39. Kg3 {[%emt 0:00:29]} Bc8 {[%emt 0:00:51]} 40. Bd1 {[%emt 0:00:00]} Bd7 {[%emt 0:00:00]} 41. Qb2 {[%emt 0:00:00]} Bc8 {[%emt 0:00:00]} 42. Ba4 {[%emt 0:00:00]} Bd7 {[%emt 0:00:00]} 43. Qb3 {[%emt 0:00:00]} Bxa4 {[%emt 0:03:15]} 44. Qxa4 {[%emt 0:00:00] [#] White threatens Qe8 and mate.} Nd7 {[%emt 0:01:55]} 45. Bc3 {[%emt 0:00:00]} Kg8 {[%emt 0:02:49]} 46. Nxh6+ {[%emt 0:00:00]} Kg7 {[%emt 0:00:08]} 47. Nhf5+ {[%emt 0:00:00]} Kh7 {[%emt 0:00:12]} 48. Qc6 {[%emt 0:00:00]} Qxc6 {[%emt 0:00:07]} 49. dxc6 {[%emt 0:00:00]} Nb8 {[%emt 0:00:20]} 50. Nxd6 {[%emt 0:00:00][%cal Bf5d6,Bd6b7,Bb7c5,Bc5a6][%mdl 32]} Nxc6 {[%emt 0:00:06]} 51. Nb7 {[%emt 0:00:00]} Kg7 $2 {[%emt 0:02:14]} (51... Be7 52. Nd5 Nd8 53. Nxe7 Nxb7) 52. Nxc5 {[%emt 0:00:00]} Bxa5 {[%emt 0:00:21]} 53. Bxa5 {[%emt 0:00:00]} Nxa5 {[%emt 0:00:03]} 54. Nxa6 {[%emt 0:00:00]} Nc6 {[%emt 0:00:46]} 55. c5 {[%emt 0:00:00]} Nd4 {[%emt 0:00:26]} 56. Nf5+ {[%emt 0:00:00]} Nxf5+ {[%emt 0:03:19]} 57. exf5 {[%emt 0:00:00] White took control after the opening.  Weighted Error Value: White=0.16 (very precise) /Black=0.54} 1-0

[Event "15th Arad Open 2022"]
[Site "Arad"]
[Date "2022.08.14"]
[Round "9.15"]
[White "Butolo, Alexandru-Mircea"]
[Black "Tudor, Henry Edward"]
[Result "1-0"]
[ECO "B42"]
[WhiteElo "1863"]
[BlackElo "1984"]
[Annotator "TA"]
[PlyCount "85"]
[EventDate "2022.08.08"]
[EventType "swiss"]
[EventCountry "ROU"]
[SourceTitle "playchess.com"]
[Source "ChessBase"]
[SourceQuality "1"]
[TimeControl "5400+30"]

{[%evp 15,85,22,39,0,14,14,6,-93,49,47,44,17,15,4,17,21,18,16,36,31,52,62,49,54,100,41,89,26,16,-16,-16,-18,-29,-35,-7,-60,305,304,381,375,381,371,372,372,559,527,1098,1037,1356,1349,1342,1335,1301,1293,1331,1279,1836,1830,1553,1526,29981,1399,1623,1593,2216,2009,5385,1365,29995,29994,29997,29998]} 1. e4 {[%emt 0:08:47]} c5 {[%emt 0:00:19]} 2. Nf3 {[%emt 0:00:04]} e6 {[%emt 0:00:23]} 3. d4 {[%emt 0:02:46]} cxd4 {[%emt 0:00:36]} 4. Nxd4 {[%emt 0:00:05]} a6 {[%emt 0:00:29]} 5. Bd3 {[%emt 0:00:07]} Nf6 {[%emt 0:00:38]} 6. O-O {[%emt 0:00:52]} Bc5 {[%emt 0:01:14]} 7. Nb3 {[%emt 0:00:23]} Ba7 {[%emt 0:02:23]} 8. c4 {[%emt 0:05:39]} Nc6 {[%emt 0:02:47]} 9. Bf4 {[%emt 0:01:37] [#] B42: Sicilian: Kan Variation: 5 Bd3.} d5 $146 {[%emt 0:04:43]} ({Predecessor:} 9... d6 10. Nc3 O-O 11. Qe2 Qe7 12. c5 dxc5 13. e5 Nd5 14. Qe4 f5 15. Nxd5 exd5 16. Qxd5+ Be6 {0-1 (40) Horvath,R (2015)-Kristoferitsch,D (1941) Austria 2019}) 10. cxd5 {[%emt 0:10:54]} exd5 {[%emt 0:00:17]} 11. e5 {[%emt 0:02:09]} (11. Nc3 $11 {remains equal.}) 11... Ng8 {[%emt 0:09:42]} (11... Ng4 $17) 12. Nc3 {[%emt 0:04:20]} Nge7 {[%emt 0:01:23]} 13. Qf3 {[%emt 0:02:02]} Be6 {[%emt 0:01:40]} 14. Rad1 {[%emt 0:02:41]} Qc7 {[%emt 0:07:57]} 15. Qg3 {[%emt 0:03:08]} O-O {[%emt 0:01:17]} 16. Rfe1 {[%emt 0:04:53]} (16. Qh4 Ng6 17. Bxg6 fxg6 $15) 16... Rad8 {[%emt 0:02:12]} 17. Bg5 {[%emt 0:01:36]} Rd7 {[%emt 0:01:00]} 18. Kh1 {[%emt 0:02:29]} Kh8 {[%emt 0:31:36]} 19. f4 $40 {[%emt 0:06:36][%mdl 128] White attacks.} (19. Qh4 Ng6 20. Bxg6 fxg6 $15) 19... d4 {[%emt 0:00:15]} (19... Qc8 $14 {should be considered.}) 20. Ne2 {[%emt 0:09:06] White is more active.} (20. Qh4 $6 Ng6 21. Bxg6 fxg6 $11) (20. Ne4 $16 {[%cal Oe4f6] aiming for Nf6!} Nf5 21. Qh3) 20... Bf5 {[%emt 0:05:01]} (20... Qc8 $14) 21. Bxe7 {[%emt 0:05:45]} (21. Qh4 $1 $16) 21... Nxe7 $11 {[%emt 0:00:37]} 22. Qg5 {[%emt 0:00:54]} f6 {[%emt 0:12:18]} 23. exf6 {[%emt 0:00:07]} Rxf6 {[%emt 0:00:01]} 24. Qh5 {[%emt 0:07:18][%cal Oe2d4]} g6 {[%emt 0:01:52]} 25. Qg5 {[%emt 0:02:12]} (25. Qh4 $1 $11 Rf7 26. Nec1) 25... Kg7 $2 {[%emt 0:00:22][%mdl 8192] [#] This move loses the game for Black.} (25... Rf8 $15 {keeps the upper hand.}) 26. Ng3 $1 $18 {[%emt 0:00:59] White threatens Nh5+ and mate.} Kf7 {[%emt 0:00:00] [#]} 27. Rc1 $1 {[%emt 0:01:43]} ({Not} 27. Nh5 gxh5 28. Bxf5 (28. Qxh5+ $2 Bg6 $19) (28. Rxe7+ $2 Rxe7 29. Bxf5 h6 $19) 28... Nxf5 $11) (27. Bxf5 Nxf5 28. Re5 h6 $11) 27... Bxd3 {[%emt 0:00:26]} 28. Rxc7 {[%emt 0:00:05]} Rxc7 {[%emt 0:00:01]} 29. Qe5 {[%emt 0:01:10][%csl LRc7,LRd4] Really sharp!} Rd7 {[%emt 0:00:40]} (29... Rfc6 {was necessary.} 30. h3 Bf5) 30. Nd2 {[%emt 0:01:27] Strongly threatening Nge4.} Bb6 {[%emt 0:05:08]} 31. Nde4 {[%emt 0:01:42]} Nd5 {[%emt 0:00:45]} 32. Nxf6 {[%emt 0:01:50]} Nxf6 {[%emt 0:00:57]} 33. Qe6+ {[%emt 0:00:23]} Kg7 {[%emt 0:00:28]} 34. Qxb6 {[%emt 0:00:21]} Bb5 {[%emt 0:00:01]} 35. Qc5 {[%emt 0:01:13] Hoping for Re7+.} Kf7 {[%emt 0:00:36] Prevents Re7+.} 36. Ne4 {[%emt 0:01:40]} Nxe4 {[%emt 0:00:02]} 37. Rxe4 {[%emt 0:00:07]} d3 {[%emt 0:00:01]} 38. Rd4 {[%emt 0:00:29]} (38. f5 $142 d2 39. fxg6+ hxg6 40. Rf4+ Ke6 41. Qe3+ Kd6 42. Rf6+ Kd5 43. Qxd2+ Bd3 44. Rxg6) 38... Re7 {[%emt 0:00:15]} 39. h4 {[%emt 0:00:18] Threatens to win with f5.} Re2 {[%emt 0:00:20]} 40. Qd5+ {[%emt 0:00:00]} Kf6 {[%emt 0:00:00]} 41. Re4 {[%emt 0:00:00]} Rc2 {[%emt 0:00:00]} 42. Re6+ {[%emt 0:00:00]} Kg7 {[%emt 0:00:00]} 43. Re7+ {[%emt 0:00:00] Weighted Error Value: White=0.23 (precise) /Black=0.94} 1-0